Cogmind - Beta 11 X8 @@@ ROGUE MODE // 2022.01.15 @ 09:57:01 Player: tourn Result: Destroyed by G-47 Trooper with Particle Gun Performance ------------- Evolutions (3) 1500 Regions Visited (11) 2200 Robots Destroyed (85) 425 Value Destroyed (4120) 4120 Prototype IDs (14) 280 Alien Tech Used (0) 0 Bonus (3613) 3613 TOTAL SCORE: 12138 Bonus ------- High Alert Combat Kills 283 Follower Combat Kills 1294 Entered Garrisons 600 Used RIF Installer 1500 Friendly Fire -64 Cogmind --------- Core Integrity 0/700 Matter 300/300 Energy 62/150 System Corruption 9% Temperature Cool (13) Movement Walking (110) Location -7/Garrison Parts ------- > --- POWER (1) -------- Micro Nuclear Core > --- PROPULSION (3) --- Carbon-fiber Leg Carbon-fiber Leg VSS Leg > --- UTILITY (7) ------ Large Storage Unit Gravity Neutralizing Apparatus Insulated Plating Relay Coupler [Duelist] (15) Relay Coupler [Sentry] (11) Relay Coupler [Heavy] (15) > --- WEAPON (2) ------- Heavy Machine Gun Kinetic Spear > --- INVENTORY (15) --- Angular Momentum Engine Carbon-fiber Leg Carbon-fiber Leg VSS Leg High-capacity Storage Unit Experimental Sensor Array Relay Coupler [NC] (33) Relay Coupler [Sentry] (24) Relay Coupler [Sentry] (25) Relay Coupler [Hunter] (13) Heavy Gatling Laser Heavy Wave Gun Heavy Wave Gun Improved Datajack Kinetic Spear Peak State ------------ > --- POWER ------------ Micro Nuclear Core > --- PROPULSION ------- Carbon-fiber Leg Flexi-carbon Leg Flexi-carbon Leg > --- UTILITY ---------- High-capacity Storage Unit Gravity Neutralizing Apparatus Hardened Medium Armor Plating Reflective Plating Relay Coupler [Grunt] Relay Coupler [Sentry] Relay Coupler [Heavy] > --- WEAPON ----------- Heavy Machine Gun Kinetic Spear > --- INVENTORY -------- Angular Momentum Engine Armored Treads Carbon-fiber Leg VSS Leg VSS Leg Experimental Heat Sink Experimental Sensor Array Transmission Jammer Insulated Plating Relay Coupler [NC] Relay Coupler [NC] Relay Coupler [Duelist] Relay Coupler [Sentry] Relay Coupler [Sentry] Relay Coupler [Hunter] Heavy Gatling Laser Heavy Wave Gun Heavy Wave Gun Improved Datajack Kinetic Spear [Rating: 64] Favorites ----------- Power Light Nuclear Core Engine Cooled Ion Engine Power Core Light Nuclear Core Propulsion Light Treads Treads Light Treads Leg Aluminum Leg Flight Unit Cooled Nuclear Pulse Thruster Utility High-capacity Storage Unit Device Transmission Jammer Storage High-capacity Storage Unit Processor Target Analyzer Hackware Relay Coupler [Grunt] Protection Reflective Plating Weapon Assault Rifle Energy Gun Electrolaser Ballistic Gun Assault Rifle Ballistic Cannon Advanced Assault Cannon Launcher Shock Bomb Launcher Special Weapon Remote Datajack Impact Weapon Hammer Slashing Weapon Katana Piercing Weapon Kinetic Spear Special Melee Weapon Improved Datajack Build | -11 -10 -10 -10 -9 -8 -8 -8 -7 -7 -7 -7 ------- Run | Scr Mat Min Exi Min Mat Sto Gar Fac Gar Fac Gar Slots Evolved 6 | . . . . . 4 . . 2 . . . Power . | . . . . . . . . . . . . Propulsion 1 | . . . . . 1 . . . . . . Utility 5 | . . . . . 3 . . 2 . . . Weapon . | . . . . . . . . . . . . Parts Attached 188 | . 4 3 . . 44 18 11 7 32 58 11 Power 15 | . 1 1 . . 4 1 . . 2 6 . Engine 11 | . 1 . . . 3 1 . . 1 5 . Core 4 | . . 1 . . 1 . . . 1 1 . Reactor . | . . . . . . . . . . . . Propulsion 46 | . . 1 . . 13 5 3 1 2 18 3 Treads 21 | . . . . . 3 5 3 1 2 6 1 Leg 24 | . . 1 . . 10 . . . . 11 2 Wheel . | . . . . . . . . . . . . Hover . | . . . . . . . . . . . . Flight 1 | . . . . . . . . . . 1 . Utility 56 | . 1 1 . . 14 2 2 1 11 20 4 Device 20 | . . 1 . . 4 1 1 . 4 9 . Storage 8 | . 1 . . . 4 . . . . 2 1 Processor 3 | . . . . . 3 . . . . . . Hackware 10 | . . . . . . . 1 1 4 3 1 Protection 15 | . . . . . 3 1 . . 3 6 2 Artifact . | . . . . . . . . . . . . Weapon 71 | . 2 . . . 13 10 6 5 17 14 4 Energy Gun 14 | . . . . . 10 1 . . . 2 1 Energy Cannon . | . . . . . . . . . . . . Ballistic Gun 23 | . 2 . . . 1 5 2 2 7 4 . Ballistic Cannon 2 | . . . . . . 2 . . . . . Launcher 5 | . . . . . 1 1 1 1 1 . . Special Weapon 1 | . . . . . . . . . . 1 . Impact Weapon 1 | . . . . . 1 . . . . . . Slashing Weapon 7 | . . . . . . 1 1 1 2 2 . Piercing Weapon 3 | . . . . . . . . . . 1 2 Special Melee Weapon 15 | . . . . . . . 2 1 7 4 1 Unidentified Prototypes 15 | . . . . . 3 3 . . . 9 . Corrupted Parts 2 | . . . . . 1 . . . 1 . . System Corruption 6 | . . . . . 4 . . . 2 . . Parts Lost 40 | . . . . . 6 1 1 1 9 18 4 Power 4 | . . . . . 1 . . . 1 2 . Propulsion 17 | . . . . . 3 . . 1 2 9 2 Utility 12 | . . . . . 1 . 1 . 5 3 2 Weapon 7 | . . . . . 1 1 . . 1 4 . Highest Loss Streak 12 | . . . . . 4 1 1 1 4 12 2 Average Slot Usage (%) 95 | . 85 98 100 100 94 99 99 85 96 90 98 Engine 5 | . 14 1 . . 4 9 9 7 2 5 . Core 3 | . . 12 14 14 4 . . . 4 . 7 Treads 14 | . . . . . 6 27 27 23 23 16 . Leg 10 | . 28 28 28 28 20 . . . . 4 22 Device 9 | . . 12 14 14 12 9 8 7 7 9 7 Storage 9 | . 14 14 14 14 9 9 9 7 7 6 7 Processor 7 | . . . . . 16 18 15 7 1 . . Hackware 8 | . . . . . . . 2 8 23 23 24 Protection 6 | . . . . . 3 9 9 7 8 7 12 Energy Gun 3 | . 6 . . . 16 2 . . . . . Ballistic Gun 12 | . 21 28 28 28 . 11 16 12 10 11 7 Naked Turns . | . . . . . . . . . . . . Heaviest Build 67 | 10 19 20 20 20 55 60 62 62 64 67 65 Greatest Support 67 | 20 20 20 20 20 46 60 60 60 60 67 67 Greatest Overweight (x) 3 | . . . . . 1 1 1 1 1 3 1 Average Overweight (x) . | . . . . . . . . . . . . Largest Inventory Capacity 20 | . 10 10 10 10 20 20 20 20 20 20 20 Average Capacity 16 | . 9 10 10 10 12 20 20 20 20 18 19 Most Carried 20 | . 10 10 10 10 20 20 20 20 20 20 20 Average Carried 15 | . 8 9 9 10 11 19 19 19 18 18 18 Final Capacity 20 | 8 10 10 10 10 20 20 20 20 20 20 15 Final Carried 20 | 6 10 10 10 10 20 20 20 18 20 20 15 Class Distribution -------------------- 42% | Bothacker-Mutant 25% | Mutant 20% | Scavenger-Mutant 11% | Commander-Mutant Dominant Class ---------------- Mutant | -10/Materials Mutant | -10/Mines Mutant | -10/Exiles Mutant | -9/Mines Scavenger-Mutant | -8/Materials Scavenger-Mutant | -8/Storage Commander-Mutant | -8/Garrison Bothacker-Mutant | -7/Factory Bothacker-Mutant | -7/Garrison Bothacker-Mutant | -7/Factory Bothacker-Mutant | -7/Garrison Resources | -11 -10 -10 -10 -9 -8 -8 -8 -7 -7 -7 -7 ----------- Run | Scr Mat Min Exi Min Mat Sto Gar Fac Gar Fac Gar Matter Collected 3185 | 200 82 216 . . 460 360 305 119 391 849 203 Remotely . | . . . . . . . . . . . . Salvage Created 3565 | . 85 409 . . 1188 501 50 83 208 616 425 Parts 174 | . 4 27 . . 51 28 2 2 11 35 14 Haulers Intercepted 11 | . . . . . 6 3 . . . 2 . Recyclers Shooed 1 | . . . . . . . . . . 1 . Parts Field Recycled . | . . . . . . . . . . . . Retrieved Matter . | . . . . . . . . . . . . Parts Self-Destructed . | . . . . . . . . . . . . Prevented . | . . . . . . . . . . . . Kills | -11 -10 -10 -10 -9 -8 -8 -8 -7 -7 -7 -7 ------- Run | Scr Mat Min Exi Min Mat Sto Gar Fac Gar Fac Gar Combat Hostiles Destroyed 63 | . 2 9 . . 19 9 1 2 6 8 7 Melee 8 | . . . . . . . . . 1 1 6 Guns 43 | . 2 9 . . 13 4 1 1 5 7 1 Cannons 1 | . . . . . . 1 . . . . . AOE 9 | . . . . . 4 4 . 1 . . . Classes Destroyed 10 | . 1 3 . . 3 1 . . 2 . . Worker 6 | . . 1 . . 2 . . . . 3 . Builder 1 | . . . . . . 1 . . . . . Hauler 11 | . . . . . 6 3 . . . 2 . Recycler 4 | . . 2 . . . . . . . 2 . Swarmer 22 | . . 5 . . 4 3 . 1 3 . 6 Grunt 24 | . 2 4 . . 9 2 1 1 . 4 1 Sentry 9 | . . . . . 4 4 . . . 1 . Specialist 1 | . . . . . . . . . 1 . . Hunter 5 | . . . . . 2 . . . 1 2 . Programmer 2 | . . . . . . . . . 1 1 . Best Kill Streak 7 | . 2 6 . . 7 6 1 2 2 3 3 Combat Bots Only 5 | . 2 5 . . 4 5 1 2 2 2 3 Max Kills in Single Turn 4 | . 1 1 . . 4 3 1 1 1 1 1 Gunslinging . | . . . . . . . . . . . . Exploded 4 | . . . . . 4 2 . 1 . . . Melee 1 | . . . . . . . . . 1 1 1 Uniques/NPCs Destroyed . | . . . . . . . . . . . . Combat | -11 -10 -10 -10 -9 -8 -8 -8 -7 -7 -7 -7 -------- Run | Scr Mat Min Exi Min Mat Sto Gar Fac Gar Fac Gar Damage Taken 7343 | . 61 345 . . 1259 562 393 310 952 2389 1072 Core 983 | . . 72 . . 126 84 . . 143 395 163 Absorbed by Shields . | . . . . . . . . . . . . Core Remaining (%) 77 | 100 . . . 71 . . 61 . . . . Volleys Fired 260 | . 8 31 . . 76 37 26 7 16 47 12 Largest 2 | . 2 2 . . 2 2 2 1 2 2 2 Hottest 130 | . 80 40 . . 126 111 56 36 60 60 130 Shots Fired 458 | . 16 62 . . 151 56 38 7 28 87 13 Gun 426 | . 16 62 . . 150 33 38 2 25 87 13 Cannon 19 | . . . . . . 19 . . . . . Launcher 13 | . . . . . 1 4 . 5 3 . . Special . | . . . . . . . . . . . . Kinetic 291 | . 14 62 . . . 51 38 2 25 87 12 Thermal 125 | . 2 . . . 121 1 . . . . 1 Explosive 1 | . . . . . 1 . . . . . . Electromagnetic 41 | . . . . . 29 4 . 5 3 . . Robot Hit Streak 15 | . 4 8 . . 15 13 6 2 7 8 6 Robot Miss Streak 4 | . 1 3 . . 4 2 2 1 2 3 3 Penetration Max . | . . . . . . . . . . . . Secondary Targets 5 | . . 3 . . 1 . . . 1 . . Max Gunslinging Chain 1 | . . 1 . . 1 . . . 1 . . Shots Hit Robots 328 | . 12 41 . . 106 32 23 5 28 55 26 Core Hits 137 | . 5 20 . . 47 18 6 4 8 18 11 Critical Kills 2 | . . . . . . . 1 1 . . . Critical Parts Destroyed 3 | . . . . . . 1 1 . 1 . . Critical Strikes 10 | . . . . . 5 1 2 1 1 . . Burn 5 | . . . . . 5 . . . . . . Destroy 5 | . . . . . . 1 2 1 1 . . Melee Attacks 72 | . . . . . 3 1 6 1 21 14 26 Impact 3 | . . . . . 3 . . . . . . Slashing 14 | . . . . . . 1 4 . 5 4 . Piercing 24 | . . . . . . . . . . . 24 Sneak Attacks 8 | . . . . . . . 3 . 3 2 . Combat Hostiles 8 | . . . . . . . 3 . 3 2 . Follow-up Attacks . | . . . . . . . . . . . . Damage Inflicted 7253 | . 141 511 . . 2119 856 553 195 487 1338 1053 Guns 5143 | . 141 511 . . 1940 430 334 34 314 1239 200 Cannons 184 | . . . . . . 184 . . . . . Explosions 664 | . . . . . 176 242 . 161 85 . . Melee 1255 | . . . . . . . 219 . 84 99 853 Ramming 7 | . . . . . 3 . . . 4 . . Kinetic 3350 | . 119 511 . . . 614 334 34 314 1239 185 Thermal 1508 | . 22 . . . 1408 63 . . . . 15 Explosive 176 | . . . . . 176 . . . . . . Electromagnetic 957 | . . . . . 532 179 . 161 85 . . Impact . | . . . . . . . . . . . . Slashing 402 | . . . . . . . 219 . 84 99 . Piercing 853 | . . . . . . . . . . . 853 Highest Corruption 12 | . . . . . 4 . 3 . 3 12 9 Average Corruption 4 | . . . . . 2 . 3 . 1 10 9 Corruption Purged 10 | . . . . . 4 . . . 2 4 . Effects 35 | . . . . . 7 . 4 . 6 9 9 Message Errors 10 | . . . . . 2 . 1 . 2 4 1 Matter Fused 10 | . . . . . 4 . 1 . . . 5 Heat Flow Errors 2 | . . . . . . . . . . . 2 Energy Discharges 6 | . . . . . . . 2 . 2 2 . Data Loss (minor) 5 | . . . . . 1 . . . 2 1 1 Misfires 1 | . . . . . . . . . . 1 . Alerts 1 | . . . . . . . . . . 1 . Overload Shots . | . . . . . . . . . . . . Overflow Damage 48 | . . . . . . 8 19 7 9 . 5 Projectiles . | . . . . . . . . . . . . Explosions 15 | . . . . . . 8 . 7 . . . Melee 33 | . . . . . . . 19 . 9 . 5 Knockbacks . | . . . . . . . . . . . . Impact . | . . . . . . . . . . . . Kinetic . | . . . . . . . . . . . . Secondary . | . . . . . . . . . . . . Self-Inflicted Damage 136 | . . . . . 14 67 25 2 28 . . Shots 9 | . . . . . 1 4 1 1 2 . . Rammed . | . . . . . . . . . . . . Targets Rammed 2 | . . . . . 1 . . . 1 . . Kicked 1 | . . . . . 1 . . . . . . Crushed 1 | . . . . . . . . . 1 . . Highest Temperature 306 | . 18 8 . . 171 92 4 . 30 164 306 Average Temperature 44 | . 12 3 . . 42 19 1 . 9 59 90 Received Heat Transfer 1590 | . 30 168 . . 648 117 63 9 204 279 72 Siege Activations . | . . . . . . . . . . . . Robots Corrupted . | . . . . . . . . . . . . Combat Hostiles . | . . . . . . . . . . . . Parts Fried 4 | . . . . . 3 . . 1 . . . Impact Corruptions . | . . . . . . . . . . . . Robots Melted 2 | . . . . . 2 . . . . . . Combat Hostiles 2 | . . . . . 2 . . . . . . Parts Melted 9 | . . . . . 6 2 . . . 1 . Heat Transferred 3616 | . 50 . . . 3441 100 . . . . 25 Parts Sabotaged . | . . . . . . . . . . . . Parts Stolen . | . . . . . . . . . . . . Parts Stripped . | . . . . . . . . . . . . Power Chain Reactions 1 | . . . . . . 1 . . . . . Missiles Intercepted . | . . . . . . . . . . . . Alert | -11 -10 -10 -10 -9 -8 -8 -8 -7 -7 -7 -7 ------- Run | Scr Mat Min Exi Min Mat Sto Gar Fac Gar Fac Gar Peak Influence 1126 | . 113 278 . . 475 384 1126 780 707 621 453 Initial 590 | . . 43 . . . 133 226 590 546 371 176 Average 398 | . 45 130 . . 312 213 754 627 616 411 338 Maximum Alert Level 4 | . . 1 . . 2 1 4 3 3 2 2 Low Security (%) 24 | . 100 77 . 100 22 49 . . . . 20 Level 1 27 | . . 22 . . 51 50 16 . . 30 41 Level 2 34 | . . . . . 25 . 12 84 92 69 38 Level 3 11 | . . . . . . . 64 16 7 . . Level 4 . | . . . . . . . 6 . . . . Level 5 . | . . . . . . . . . . . . High Security . | . . . . . . . . . . . . Max Security . | . . . . . . . . . . . . Squads Dispatched 16 | . 3 1 . . 4 1 . 2 . 5 . Investigation 2 | . 1 . . . 1 . . . . . . Extermination 2 | . . . . . . . . . . 2 . Reinforcement 10 | . 2 . . . 3 1 . 1 . 3 . Assault 1 | . . 1 . . . . . . . . . Garrison 1 | . . . . . . . . 1 . . . Intercept . | . . . . . . . . . . . . Construction Impeded 1 | . . . . . . . . 1 . . . Haulers Reinforced . | . . . . . . . . . . . . Active Scanning Responses . | . . . . . . . . . . . . Cargo Convoy Interrupts 1 | . . . . . . . . . . 1 . Stealth | -11 -10 -10 -10 -9 -8 -8 -8 -7 -7 -7 -7 --------- Run | Scr Mat Min Exi Min Mat Sto Gar Fac Gar Fac Gar Distress Signals 3 | . 1 . . . 2 . . . . . . Communications Jammed 29 | . . . . . . 14 . . . 15 . Distress Signals 24 | . . . . . . 14 . . . 10 . Times Spotted 175 | . 10 10 . . 37 14 19 9 18 36 22 Peak Tracking Total 13 | . 5 4 . . 4 5 6 5 5 13 8 Tactical Retreats 5 | . . . . . . 1 . . 1 1 2 Traps | -11 -10 -10 -10 -9 -8 -8 -8 -7 -7 -7 -7 ------- Run | Scr Mat Min Exi Min Mat Sto Gar Fac Gar Fac Gar Traps Triggered 5 | . 1 . . . . 1 1 . . . 2 Indirectly . | . . . . . . . . . . . . Trap Hack Attempts 21 | . . . . . . . . . 21 . . Triggered . | . . . . . . . . . . . . Disarmed 1 | . . . . . . . . . 1 . . Reprogrammed 1 | . . . . . . . . . 1 . . Reused . | . . . . . . . . . . . . Traps Extracted . | . . . . . . . . . . . . Installed . | . . . . . . . . . . . . Triggered 1 | . . . . . . . . . . 1 . Machines | -11 -10 -10 -10 -9 -8 -8 -8 -7 -7 -7 -7 ---------- Run | Scr Mat Min Exi Min Mat Sto Gar Fac Gar Fac Gar Machines Disabled 21 | . . . . . 3 5 6 . 2 3 2 Max in Single Turn 3 | . . . . . 1 1 2 . 1 3 1 Garrison Relay 8 | . . . . . . . 4 . 3 . 1 Phase Generator 1 | . . . . . . . 1 . . . . Machines Sabotaged . | . . . . . . . . . . . . Garrisons Compromised 1 | . . . . . . . . . . 1 . Overloaded Fab Kills . | . . . . . . . . . . . . Hacking | -11 -10 -10 -10 -9 -8 -8 -8 -7 -7 -7 -7 --------- Run | Scr Mat Min Exi Min Mat Sto Gar Fac Gar Fac Gar Machines Accessed 16 | . 4 . 1 . 5 4 . 1 . 1 . Terminals 11 | . 4 . . . 4 3 . . . . . Fabricators . | . . . . . . . . . . . . Repair Stations 1 | . . . . . 1 . . . . . . Recycling Units . | . . . . . . . . . . . . Scanalyzers . | . . . . . . . . . . . . Garrison Access 3 | . . . . . . 1 . 1 . 1 . Total Hacks 29 | . 7 . 1 . 12 7 . 1 . 1 . Successful 13 | . 2 . 1 . 5 3 . 1 . 1 . Failed 16 | . 5 . . . 7 4 . . . . . Catastrophic 5 | . 3 . . . 1 1 . . . . . Database Lockouts . | . . . . . . . . . . . . Manual 17 | . 5 . . . 8 4 . . . . . Terminals 22 | . 7 . . . 10 5 . . . . . Fabricators . | . . . . . . . . . . . . Repair Stations 2 | . . . . . 2 . . . . . . Recycling Units . | . . . . . . . . . . . . Scanalyzers . | . . . . . . . . . . . . Garrison Access 4 | . . . . . . 2 . 1 . 1 . Terminal Hacks 6 | . 2 . 1 . 2 1 . . . . . Record 1 | . . . 1 . . . . . . . . Robot Analysis 1 | . 1 . . . . . . . . . . Branch Access Points 2 | . 1 . . . 1 . . . . . . Alert Level 1 | . . . . . 1 . . . . . . Locate Traps 1 | . . . . . . 1 . . . . . Fabricator Hacks . | . . . . . . . . . . . . Repair Station Hacks 2 | . . . . . 2 . . . . . . Scan Component 1 | . . . . . 1 . . . . . . Repair 1 | . . . . . 1 . . . . . . Recycling Unit Hacks . | . . . . . . . . . . . . Scanalyzer . | . . . . . . . . . . . . Garrison Access Hacks 3 | . . . . . . 1 . 1 . 1 . Unlock Access 3 | . . . . . . 1 . 1 . 1 . Unauthorized Hacks 2 | . . . . . 1 1 . . . . . Terminals 2 | . . . . . 1 1 . . . . . Botnet 2 | . . . . . 1 1 . . . . . Fabricators . | . . . . . . . . . . . . Repair Stations . | . . . . . . . . . . . . Recycling Units . | . . . . . . . . . . . . Scanalyzers . | . . . . . . . . . . . . Garrison Access . | . . . . . . . . . . . . Data Cores Recovered . | . . . . . . . . . . . . Used . | . . . . . . . . . . . . Hacking Detections 10 | . 2 . . . 4 4 . . . . . Full Trace Events 1 | . 1 . . . . . . . . . . Feedback Events . | . . . . . . . . . . . . Feedback Blocked . | . . . . . . . . . . . . Robot Schematics Acquired . | . . . . . . . . . . . . Robots Built . | . . . . . . . . . . . . Authchips . | . . . . . . . . . . . . Time . | . . . . . . . . . . . . Total Robot Build Rating . | . . . . . . . . . . . . Part Schematics Acquired . | . . . . . . . . . . . . Parts Built . | . . . . . . . . . . . . Authchips . | . . . . . . . . . . . . Time . | . . . . . . . . . . . . Total Part Build Rating . | . . . . . . . . . . . . Parts Repaired 1 | . . . . . 1 . . . . . . Time 38 | . . . . . 38 . . . . . . Parts Recycled . | . . . . . . . . . . . . Recycled Matter . | . . . . . . . . . . . . Retrieved Matter . | . . . . . . . . . . . . Retrieved Components . | . . . . . . . . . . . . Parts Scanalyzed . | . . . . . . . . . . . . Part Schematics Acquired . | . . . . . . . . . . . . Parts Damaged . | . . . . . . . . . . . . Bothacking | -11 -10 -10 -10 -9 -8 -8 -8 -7 -7 -7 -7 ------------ Run | Scr Mat Min Exi Min Mat Sto Gar Fac Gar Fac Gar Used RIF Installer 3 | . . . . . . . 1 . 1 . 1 Hotswap 1 | . . . . . . . . . . . 1 Program Shield 1 | . . . . . . . . . 1 . . Robots Hacked 16 | . . . . . . . 1 1 9 4 1 Non-combat . | . . . . . . . . . . . . Combat 16 | . . . . . . . 1 1 9 4 1 Robot Hacks Applied 17 | . . . . . . . 1 1 10 4 1 parse_system 1 | . . . . . . . . . 1 . . reboot_system 4 | . . . . . . . 1 . 2 1 . overwrite_iff 2 | . . . . . . . . 1 1 . . formatsys_high 10 | . . . . . . . . . 6 3 1 Relay Couplers Released 28 | . . . . . . . 14 . 10 . 4 Machine Destruction 28 | . . . . . . . 14 . 10 . 4 Attached 10 | . . . . . . . 1 1 4 3 1 Robots Rewired 1 | . . . . . . . . . . 1 . Allies Hacked . | . . . . . . . . . . . . Hacks Repelled . | . . . . . . . . . . . . Allies | -11 -10 -10 -10 -9 -8 -8 -8 -7 -7 -7 -7 -------- Run | Scr Mat Min Exi Min Mat Sto Gar Fac Gar Fac Gar Total Allies 24 | . . 1 . . . 10 . 1 7 4 1 Largest Group 10 | . . 1 1 1 1 10 10 2 3 2 1 Highest-Rated Group 173 | . . 31 31 31 31 173 173 45 48 82 30 Highest-Rated Ally 82 | . . 31 31 31 31 29 29 29 32 82 30 Total Orders . | . . . . . . . . . . . . Ally Attacks 253 | . . . . . 33 14 116 12 42 31 5 Total Damage 4279 | . . . . . 508 212 1549 177 587 1108 138 Kills 52 | . . . . . 6 2 23 6 5 8 2 Allies Corrupted 1 | . . . . . . . 1 . . . . Allies Melted . | . . . . . . . . . . . . Intel | -11 -10 -10 -10 -9 -8 -8 -8 -7 -7 -7 -7 ------- Run | Scr Mat Min Exi Min Mat Sto Gar Fac Gar Fac Gar Robot Analysis Total 1 | . 1 . . . . . . . . . . Derelict Logs Recovered 2 | . . 1 . 1 . . . . . . . Drone Launches . | . . . . . . . . . . . . Drone Recoveries . | . . . . . . . . . . . . Exploration | -11 -10 -10 -10 -9 -8 -8 -8 -7 -7 -7 -7 ------------- Run | Scr Mat Min Exi Min Mat Sto Gar Fac Gar Fac Gar Turns Passed 7989 | . 306 701 363 158 1350 1015 1175 150 980 1444 347 Spaces Moved 4179 | 1 220 496 302 132 629 526 604 71 449 604 145 Core 32 | . . . . . . . . . . 32 . Treads 2219 | . . . . . 131 526 604 71 449 438 . Legs 1928 | 1 220 496 302 132 498 . . . . 134 145 Wheels . | . . . . . . . . . . . . Hover . | . . . . . . . . . . . . Flight . | . . . . . . . . . . . . Fastest Speed 50 | 120 120 120 120 120 120 160 160 160 160 50 110 Average Speed 150 | 120 120 120 120 120 144 161 173 163 167 175 129 Slowest Speed 400 | 120 120 120 120 120 240 240 240 240 240 400 186 Overloaded Moves . | . . . . . . . . . . . . Propulsion Burnouts . | . . . . . . . . . . . . Robots Hopped . | . . . . . . . . . . . . Cave-ins Triggered . | . . . . . . . . . . . . Exploration Rate (%) 46 | 2 56 97 73 33 46 60 84 2 57 11 33 Regions Visited 11 Branch Regions 4 Pre-discovered Areas 2 | . . . 1 1 . . . . . . . Known Exits Taken 5 | . 1 . . . 1 1 . 1 . 1 . Unknown Exits Taken 4 | 1 . 1 1 1 . . . . . . . Scrap Searched 2 | . . 1 . 1 . . . . . . . Spaces Dug 6 | . . . . . . 3 . . . 3 . Terrain Destroyed 136 | . . . . . 5 11 90 . 1 29 . Melee 4 | . . . . . . 1 . . . 3 . Projectile 10 | . . . . . . 7 2 . 1 . . AOE 122 | . . . . . 5 3 88 . . 26 . Terrain Rammed . | . . . . . . . . . . . . Walls Destroyed . | . . . . . . . . . . . . Machines Disabled . | . . . . . . . . . . . . Actions | -11 -10 -10 -10 -9 -8 -8 -8 -7 -7 -7 -7 --------- Run | Scr Mat Min Exi Min Mat Sto Gar Fac Gar Fac Gar Total 5372 | . 246 541 303 131 917 654 699 96 633 899 253 Wait 406 | . 5 4 . . 105 38 25 11 71 110 37 Move 4169 | . 219 495 301 131 628 526 603 70 448 603 145 Hop . | . . . . . . . . . . . . Pick Up 108 | . 5 3 1 . 24 10 13 . 14 30 8 Fast Attach 63 | . 3 2 . . 21 7 . . 3 27 . Attach 40 | . . . . . 7 1 1 2 11 14 4 Detach 12 | . . . . . 5 . . . 1 6 . Swap 86 | . 1 1 . . 16 11 10 5 18 17 7 Drop 114 | . 5 5 1 . 31 22 15 . 4 28 3 Fire 260 | . 8 31 . . 76 37 26 7 16 47 12 Melee 72 | . . . . . 3 1 6 1 21 14 26 Ram . | . . . . . . . . . . . . Kick 1 | . . . . . 1 . . . . . . Crush 1 | . . . . . . . . . 1 . . Escape Stasis 10 | . . . . . . . . . . . 10 Rewire 9 | . . . . . . 1 . . 4 3 1 Trap 21 | . . . . . . . . . 21 . . Miscellaneous . | . . . . . . . . . . . . Route ------- -11/Scrapyard -10/Materials (discovered 2 exits: [*Mat] / *Min) -10/Mines (discovered 3 exits: [*Mat x2] / *Exi) -10/Exiles (discovered 2 exits: [*Min x2]) -9/Mines -8/Materials (discovered 3 exits: *Fac x2 / *Sto) -8/Storage (discovered 2 exits: [*Rec] / Gar) -8/Garrison (discovered 2 exits: *Fac x2) -7/Factory -7/Garrison (discovered 2 exits: *Fac x2) -7/Factory -7/Garrison History --------- Turn | Location | Event 1 | -11/Scrapyard | Discovered new exit (range 0) 1 | -11/Scrapyard | Entered Materials 96 | -10/Materials | Identified exit to Mines 225 | -10/Materials | Discovered new exit (range 5) 307 | -10/Materials | Entered Mines 310 | -10/Mines | Build established: Mutant 373 | -10/Mines | Discovered new exit (range 12) 625 | -10/Mines | Learned Materials terminal intel 721 | -10/Mines | Discovered new exit (range 9) 911 | -10/Mines | Found a damaged Exp. Sensor Array with a note attached 914 | -10/Mines | Found Prototype Device 942 | -10/Mines | Met a Derelict testing a Signal Generator 1001 | -10/Mines | Deemed a non-threat by the Exiles lab entrance 1001 | -10/Mines | Discovered new exit (range 5) 1008 | -10/Mines | Entered Exiles 1008 | -10/Exiles | Accompanied by 1 ally 1026 | -10/Exiles | Discovered new exit (range 15) 1041 | -10/Exiles | Met 8R-AWN 1055 | -10/Exiles | Met EX-HEX 1125 | -10/Exiles | Met EX-DEC 1183 | -10/Exiles | Visited The Gauntlet 1309 | -10/Exiles | Learned location of Zion (-6) 1356 | -10/Exiles | Discovered new exit (range 12) 1371 | -10/Exiles | Entered Mines 1371 | -9/Mines | Accompanied by 1 ally 1418 | -9/Mines | Found a hidden stash of uninstalled traps 1478 | -9/Mines | Discovered new exit (range 9) 1529 | -9/Mines | Entered Materials 1529 | -8/Materials | Accompanied by 1 ally 1529 | -8/Materials | Evolved 4 slots: Propulsion x1, Utility x3 1530 | -8/Materials | Loaded intel: 12 terminal locations 1533 | -8/Materials | Identified Exp. Sensor Array 1913 | -8/Materials | Discovered new exit (range 5) 2152 | -8/Materials | Identified exit to Storage 2308 | -8/Materials | Lost 4 parts (1p1n1u1w) 2374 | -8/Materials | Discovered new exit (range 11) 2410 | -8/Materials | Build established: Scavenger-Mutant 2473 | -8/Materials | Repaired Carbon-fiber Leg 2879 | -8/Materials | Entered Storage 3473 | -8/Storage | Used back door to open Recycling access 3473 | -8/Storage | Discovered new exit (range 5) 3644 | -8/Storage | Assisted by bots powering up and referring to "LRC-V3" 3883 | -8/Storage | Identified exit to Garrison 3894 | -8/Storage | Entered Garrison 3894 | -8/Garrison | Accompanied by 10 allies 3902 | -8/Garrison | Installed Relay Interface Framework 3951 | -8/Garrison | Build established: Commander-Mutant 3992 | -8/Garrison | Triggered checkpoint 4017 | -8/Garrison | Garrison Relay disabled 4080 | -8/Garrison | Triggered checkpoint 4088 | -8/Garrison | Triggered checkpoint 4148 | -8/Garrison | Discovered new exit (range 8) 4190 | -8/Garrison | Triggered checkpoint 4235 | -8/Garrison | Garrison Relay disabled 4430 | -8/Garrison | Phase Generator disabled 4554 | -8/Garrison | Triggered checkpoint 4664 | -8/Garrison | Triggered checkpoint 4736 | -8/Garrison | Garrison Relay disabled 4850 | -8/Garrison | Triggered checkpoint 4861 | -8/Garrison | Build established: Bothacker-Mutant 4945 | -8/Garrison | Discovered new exit (range 10) 4998 | -8/Garrison | Garrison Relay disabled 5014 | -8/Garrison | Triggered checkpoint 5069 | -8/Garrison | Entered Factory 5069 | -7/Factory | Accompanied by 2 allies 5069 | -7/Factory | Evolved 2 slots: Utility x2 5149 | -7/Factory | Identified exit to Garrison 5177 | -7/Factory | Garrison activated, responded to threat 5219 | -7/Factory | Entered Garrison 5219 | -7/Garrison | Accompanied by 1 ally 5276 | -7/Garrison | Triggered checkpoint 5314 | -7/Garrison | Garrison Relay disabled 5412 | -7/Garrison | Triggered checkpoint 5653 | -7/Garrison | Lost 4 parts (1p2n1w) 5662 | -7/Garrison | Triggered checkpoint 5665 | -7/Garrison | Garrison Relay disabled 5895 | -7/Garrison | Discovered new exit (range 10) 5918 | -7/Garrison | Expanded RIF knowledge: Program Shield 6017 | -7/Garrison | Triggered checkpoint 6078 | -7/Garrison | Triggered checkpoint 6125 | -7/Garrison | Garrison Relay disabled 6171 | -7/Garrison | Discovered new exit (range 15) 6199 | -7/Garrison | Entered Factory 6319 | -7/Factory | Identified exit to Garrison 6988 | -7/Factory | Lost 3 parts (1p1n1u) 7370 | -7/Factory | Cargo convoy interrupted 7406 | -7/Factory | Core integrity fell below 50% 7408 | -7/Factory | System corruption reached 10% 7446 | -7/Factory | Lost 12 parts (1p6n2u3w) 7643 | -7/Factory | Entered Garrison 7649 | -7/Garrison | Expanded RIF knowledge: Hotswap 7704 | -7/Garrison | Triggered checkpoint 7713 | -7/Garrison | Core integrity fell below 20% 7763 | -7/Garrison | Garrison Relay disabled 7777 | -7/Garrison | Triggered checkpoint 7990 | -7/Garrison | Destroyed by G-47 Trooper with Particle Gun Last Messages --------------- 07890_ Stasis field depleted. 07897_ System corrupted: Component data lost. 07905_ Discarded Relay Coupler [Grunt]. 07908_ Critical hit (Burn: +37). 07909_ G-47 Trooper destroyed. 07911_ Acquired 26 matter. 07918_ Acquired 4 matter. 07921_ System corrupted: Matter fused (-7). 07921_ Acquired 7 matter. 07940_ Acquired Lrg. Storage Unit. 07942_ Dropped Relay Coupler [NC]. 07944_ Acquired Carbon-fiber Leg. 07945_ Dropped Arm. Treads. 07947_ Acquired Hvy. Wave Gun. 07949_ Acquired 10 matter. 07951_ Dropped Aluminum Leg. 07953_ Acquired Exp. Sensor Array. 07961_ System corrupted: Heat flow error (+177). 07983_ Hrd. Medium Armor Plating destroyed. Garrison Door activated. Map ----- +----------------------------------------------------+ | ?????????????????????????????????????????????????? | | ?????????????????????????????????????????????????? | | ?????????????????????????????????????????????????? | | ?????????????????????????????????????????????????? | | ?????????????????????????????????????????????????? | | ?????????????????????????????????????????????????? | | ?????????????????????????????????????????????????? | | ?????????????????????????????????????????????????? | | ?????????????????????????????????????????????????? | | ?????????????????????????????????????????????????? | | ??????????????????????? ???????????????????????? | | ??????????????????????# ???????????????????????? | | ??????????????????????# ^ ???????????????????????? | | ??????????????????????# ???????????????????????? | | ??????????????????????# ???????????????????????? | | ??????????????????????# ???????????????????????? | | ??????????????????????# ???????????????????????? | | ??????????????????????# #??????????????????????? | | ????????????????####??# #??????????????????????? | | ????????????????#g g?# #??????????????????????? | | ?????????????#### ## #??????????????????????? | | ???????????? #??????????????????????? | | ????????????? #??????????????????????? | | ??????????????? ? #??????????????????????? | | ???????????? ???# ?# #??????????????????????? | | ???????????# ## ## @###????????????????????? | | ?????????? #????????????????????? | | ???????????" b g#????????????????????? | | ???????????" g#????????????????????? | | ???????????" g#????????????????????? | | ???????????# ## ## ###????????????????????? | | ???????????? ???# ## ######################## | | ??????????? [!%! ! = | | ??????????? ##########=%*## | | ???????????# ####### #????????# %[#? | | ???????????## ##""""## ##?????# #????????##"##? | | ??????????????????????# s???????# #?????????# #?? | | ??????????????????????# ???????# #??######## #?? | | ??????????????????????# s???????# # #?? | | ??????????????????????# ???????# #??########=#?? | | ??????????????????????#s ???????# #?????????#%#?? | | ??????????????????????# ???????# #????????##"##? | | ??????????????????????# ######## #????????#=%%#? | | ??????????????????????# ##########=[%## | | ??????????????????????# ===!*!! | | ??????????????????????##???###### ############### | | ????????????????????????????????# #?????????????? | | ????????????????????????????????# #?????????????? | | ????????????????????????????????# #?????????????? | | ????????????????????????????????# #?????????????? | +----------------------------------------------------+ Best States ------------- Heat Dissipation 45 Energy Generation 18 Energy Capacity 300 Matter Stores 300 Matter Capacity 300 Sight Range 16 Robot Scan Range 20 Terrain Scan Density 10 Jamming Range 8 Additional Mass Support 12 Armor Coverage 375 Resistance: TH 10 Resistance: EM 15 Weapon Cycling 15 Evasion (%) 55 Targeting Accuracy 8 Target Analysis 5 Armor Integrity Analysis 20 Recoil Reduction 3 Relay Coupler Types 4 Relay Coupler Value 67 Item Schematics ----------------- None Robot Schematics ------------------ None Fabricated ------------ Nothing Alien Tech Used ----------------- None Achievements -------------- Hehehe Challenges ------------ None Game ------ Seed MicrowarpStasisSword Manual? 0 Play Time 01:47:33 Cumulative 165.1 hours Start 2022.01.12 @ 13:40:14 End 2022.01.15 @ 09:57:01 Sessions 9 Manual Loads 0 Difficulty Rogue Special Mode None Game No. 60 Rogue 60 Adventurer 0 Explorer 0 Win Type - Total 4 Types 4/0/0/0/0/0/0/0/0 Lore% 53 Gallery% 63 Achievement% 46 Wizard Run 0 Options --------- ASCII 0 Keyboard 1 Movement Vi Keybinds 0 Fullscreen 1 Font 18/SmallcapsGlow Map View 76x50 Tactical HUD 1 Map Filters NONE Filters NONE Steam 1 RUN: 8a06ef50-f483-4e85-bac8-4b839aecf708